bitfinex/quotes_BTCUSD_20240729
["timestamp","ask_amount","ask_price","bid_price","bid_amount"]
[1722218415262,0.54583615,68755.0,68754.0,0.008998]
[1722218415890,0.54783615,68755.0,68754.0,0.0105522]
[1722218416939,0.54783615,68755.0,68754.0,0.008998]
[1722218417144,0.54583615,68755.0,68754.0,0.02304165]
[1722218417311,0.52329339,68755.0,68754.0,0.02304165]
[1722218417512,0.54583615,68755.0,68754.0,0.008998]
[1722218418315,0.41419251,68755.0,68754.0,0.02148175]
[1722218418515,0.54584823,68755.0,68754.0,0.02148175]
[1722218418764,0.54584823,68755.0,68754.0,0.0105522]
[1722218420700,0.77855823,68755.0,68754.0,0.0105522]
[1722218420903,0.77855823,68755.0,68754.0,0.008998]
[1722218421208,1.01297734,68755.0,68754.0,0.008998]
[1722218421554,0.85847909,68755.0,68754.0,0.008998]
[1722218421756,1.03548327,68755.0,68754.0,0.008998]
[1722218421957,1.15730446,68755.0,68754.0,0.008998]
[1722218422140,1.25054239,68755.0,68754.0,0.008998]
[1722218422393,0.37162276,68752.0,68751.0,0.000998]
[1722218422594,0.52578105,68752.0,68751.0,0.01421412]
[1722218423034,0.29306105,68752.0,68751.0,0.01505671]
[1722218423236,0.17670105,68752.0,68751.0,0.01505671]
[1722218423418,0.29306105,68752.0,68751.0,0.01505671]
[1722218423616,0.29306105,68752.0,68751.0,0.01350251]
[1722218424020,0.75850105,68752.0,68751.0,0.01350251]
[1722218424346,0.75850105,68752.0,68751.0,0.000998]
[1722218424548,0.75850105,68752.0,68751.0,0.0025522]
[1722218424761,0.75867635,68752.0,68751.0,0.0045522]
[1722218424943,0.75867635,68752.0,68751.0,0.002998]
[1722218425701,0.52595635,68752.0,68751.0,0.002998]
[1722218426277,0.52595635,68752.0,68751.0,0.0045522]
[1722218426486,0.75867635,68752.0,68751.0,0.002998]
[1722218426621,0.52595635,68752.0,68751.0,0.0045522]
[1722218426814,0.52595635,68752.0,68751.0,0.002998]
[1722218427025,0.52595635,68752.0,68751.0,0.003922]
[1722218427465,0.52595635,68752.0,68751.0,0.0054762]
[1722218427964,0.43283936,68752.0,68751.0,0.003922]
[1722218428138,0.52637259,68752.0,68751.0,0.003922]
[1722218429441,0.75909259,68752.0,68751.0,0.003922]
[1722218429759,0.76109259,68752.0,68751.0,0.003922]
[1722218430836,0.78393605,68752.0,68751.0,0.003922]
[1722218431214,0.62918622,68752.0,68751.0,0.003922]
[1722218431536,0.78358574,68752.0,68751.0,0.003922]
[1722218431776,0.62918622,68752.0,68751.0,0.0054762]
[1722218431978,0.76118474,68752.0,68751.0,0.0054762]
[1722218432191,0.76118474,68752.0,68751.0,0.003922]
[1722218434407,0.99390474,68752.0,68751.0,0.003922]
[1722218434778,0.97632291,68752.0,68751.0,0.003922]
[1722218434995,1.20904291,68752.0,68751.0,0.003922]
[1722218435203,1.23188646,68752.0,68751.0,0.003922]
[1722218435405,1.20904291,68752.0,68751.0,0.003922]
[1722218436014,1.21004291,68752.0,68751.0,0.001922]
[1722218436232,1.21204291,68752.0,68751.0,0.001922]
[1722218436634,1.21104291,68752.0,68751.0,0.001922]
[1722218437589,1.21040731,68752.0,68751.0,0.001922]
[1722218438877,1.27530731,68752.0,68751.0,0.001922]
[1722218439254,1.06016034,68752.0,68751.0,0.001922]
[1722218440028,1.1652038,68752.0,68751.0,0.001922]
[1722218440229,3.08486451,68752.0,68751.0,0.001922]
[1722218440488,3.95958966,68752.0,68751.0,0.001922]
[1722218440630,3.56667069,68752.0,68751.0,0.001922]
[1722218440831,3.42276229,68752.0,68751.0,0.001922]
[1722218441054,3.6594719,68752.0,68751.0,0.001922]
[1722218441279,3.26830508,68752.0,68751.0,0.001922]
[1722218441435,3.18558549,68752.0,68751.0,0.001922]
[1722218441625,3.06309542,68752.0,68751.0,0.001922]
[1722218443810,2.9091054,68752.0,68751.0,0.001922]
[1722218444013,3.06287186,68752.0,68751.0,0.001922]
[1722218444297,3.07088534,68752.0,68751.0,0.001922]
[1722218444498,3.07988534,68752.0,68751.0,0.001922]
[1722218445009,2.92322734,68752.0,68751.0,0.001922]
[1722218445627,2.91422734,68752.0,68751.0,0.001922]
[1722218445768,2.91222734,68752.0,68751.0,0.001922]
[1722218445967,2.94407357,68752.0,68751.0,0.001922]
[1722218446604,2.95607357,68752.0,68751.0,0.001922]
[1722218447042,2.95659103,68752.0,68751.0,0.001922]
[1722218447193,2.9337448,68752.0,68751.0,0.001922]
[1722218448249,2.77946088,68752.0,68751.0,0.001922]
[1722218448465,2.93387886,68752.0,68751.0,0.001922]
[1722218449660,2.83387886,68752.0,68751.0,0.001922]
[1722218450360,2.67946088,68752.0,68751.0,0.001922]
[1722218450529,2.85783389,68752.0,68751.0,0.001922]
[1722218450730,2.83498804,68752.0,68751.0,0.001922]
[1722218450873,2.83575408,68752.0,68751.0,0.001922]
[1722218451315,2.16484708,68752.0,68751.0,0.001922]
[1722218451563,2.16484708,68752.0,68751.0,0.082422]
[1722218451564,1.33114811,68752.0,68751.0,0.082422]
[1722218451734,1.33114811,68752.0,68751.0,0.11712268]
[1722218451735,0.78163596,68752.0,68751.0,0.11712268]
[1722218451911,0.54891596,68752.0,68751.0,0.12965303]
[1722218452346,0.78163596,68752.0,68751.0,0.12965303]
[1722218452758,0.78163596,68752.0,68751.0,0.09650655]
[1722218453139,0.78114678,68752.0,68751.0,0.09650655]
[1722218453340,0.72734276,68752.0,68751.0,0.09650655]
[1722218453520,0.88314678,68752.0,68751.0,0.09650655]
[1722218453945,0.90599054,68752.0,68751.0,0.09650655]
[1722218455337,0.56227054,68752.0,68751.0,0.13187246]
[1722218455614,0.17864778,68752.0,68751.0,0.19847246]
[1722218455785,0.31755054,68752.0,68751.0,0.16155235]
[1722218455994,0.31755054,68752.0,68751.0,0.16310655]
[1722218455995,0.52772778,68752.0,68751.0,0.16310655]
[1722218456225,0.52972778,68752.0,68751.0,0.16310655]
[1722218456421,0.29700778,68752.0,68751.0,0.16310655]
[1722218456620,0.29700778,68752.0,68751.0,0.16155235]
[1722218456621,0.29477342,68752.0,68751.0,0.16155235]
[1722218456850,0.55003618,68752.0,68751.0,0.19694826]
[1722218456959,0.55003618,68752.0,68751.0,0.16355235]
[1722218457365,0.55003618,68752.0,68751.0,0.16510655]
[1722218457570,0.55003618,68752.0,68751.0,0.16355235]
[1722218457770,0.52749342,68752.0,68751.0,0.16355235]
[1722218458089,0.52849342,68752.0,68751.0,0.16355235]
[1722218458290,0.52849342,68752.0,68751.0,0.16510655]
[1722218458489,0.78575618,68752.0,68751.0,0.16355235]
[1722218458850,0.78575618,68752.0,68751.0,0.09695235]
[1722218459230,0.78575618,68752.0,68751.0,0.09850655]
[1722218459390,0.76291242,68752.0,68751.0,0.09850655]
[1722218459758,0.60734276,68752.0,68751.0,0.09695235]
[1722218459925,0.99629762,68752.0,68751.0,0.09695235]
[1722218460179,1.05659762,68752.0,68751.0,0.003922]
[1722218461004,1.05743762,68752.0,68751.0,0.003922]
[1722218461388,1.05643762,68752.0,68751.0,0.001922]
[1722218461795,1.05643762,68752.0,68751.0,0.002922]
[1722218461996,0.99613762,68752.0,68751.0,0.002922]
[1722218463603,0.99613762,68752.0,68751.0,0.0044762]
[1722218464339,0.99613762,68752.0,68751.0,0.02171092]
[1722218464513,0.99613762,68752.0,68751.0,0.002922]
[1722218465142,0.99694344,68752.0,68751.0,0.0044762]
[1722218466007,0.99694344,68752.0,68751.0,0.002922]
[1722218468296,0.9960449,68752.0,68751.0,0.002922]
[1722218468635,1.01888841,68752.0,68751.0,0.002922]
[1722218468786,0.9960449,68752.0,68751.0,0.002922]
[1722218471454,0.83990276,68752.0,68751.0,0.002922]
[1722218471657,1.01944209,68752.0,68751.0,0.002922]
[1722218471827,1.01944209,68752.0,68751.0,0.01543095]
[1722218472031,1.01944528,68752.0,68751.0,0.002922]
[1722218474044,1.01916679,68752.0,68751.0,0.002922]
[1722218474657,1.01933683,68752.0,68751.0,0.002922]
[1722218474965,1.01933683,68752.0,68751.0,0.00408254]
[1722218475224,1.01933683,68752.0,68751.0,0.002922]
[1722218475593,0.99649332,68752.0,68751.0,0.002922]
[1722218475970,0.99649332,68752.0,68751.0,0.00370174]
[1722218476292,0.99649332,68752.0,68751.0,0.002922]
[1722218477936,0.99663072,68752.0,68751.0,0.00384034]
[1722218479006,1.01947415,68752.0,68751.0,0.002922]
[1722218479342,1.01947415,68752.0,68751.0,0.00385455]
[1722218479459,0.99693139,68752.0,68751.0,0.00385455]
[1722218479666,1.01947415,68752.0,68751.0,0.002922]
[1722218479883,1.01947415,68752.0,68751.0,0.0044762]
[1722218480090,0.99663072,68752.0,68751.0,0.0044762]
[1722218480431,0.99663072,68752.0,68751.0,0.00403013]
[1722218480901,0.99663072,68752.0,68751.0,0.002922]
[1722218481105,0.83990276,68752.0,68751.0,0.002922]
[1722218481360,0.99635242,68752.0,68751.0,0.002922]
[1722218481487,0.76363242,68752.0,68751.0,0.01661472]
[1722218481693,0.76363242,68752.0,68751.0,0.002922]
[1722218481889,0.76363242,68752.0,68751.0,0.00428937]
[1722218482113,0.76363242,68752.0,68751.0,0.0154286]
[1722218482490,0.76363242,68752.0,68751.0,0.002922]
[1722218483121,0.76363242,68752.0,68751.0,0.00393672]
[1722218483285,0.76363242,68752.0,68751.0,0.17286995]
[1722218483684,0.76363242,68752.0,68751.0,0.18537655]
[1722218484212,0.76350639,68752.0,68751.0,0.18537655]
[1722218484811,0.76350639,68752.0,68751.0,0.0976286]
[1722218484812,0.78634953,68752.0,68751.0,0.0976286]
[1722218485011,0.76350639,68752.0,68751.0,0.0976286]
[1722218487105,0.78634953,68752.0,68751.0,0.0976286]
[1722218487482,0.72434563,68752.0,68751.0,0.0976286]
[1722218487675,0.84842336,68752.0,68751.0,0.0976286]
[1722218487879,0.84842336,68752.0,68751.0,0.09903232]
[1722218488166,0.84842336,68752.0,68751.0,0.0976286]
[1722218488514,0.84842336,68752.0,68751.0,0.09885926]
[1722218488718,0.84642336,68752.0,68751.0,0.09885926]
[1722218489021,0.2420806,68752.0,68751.0,0.66476707]
[1722218489222,0.2420806,68752.0,68751.0,1.28361307]
[1722218489223,0.14776349,68752.0,68751.0,1.28361307]
[1722218489428,0.00084,68761.0,68751.0,1.28361307]
[1722218489429,0.00084,68761.0,68760.0,0.29000324]
[1722218489583,0.00084,68761.0,68760.0,0.93838924]
[1722218489584,0.10993363,68761.0,68760.0,0.93838924]
[1722218489788,0.00084,68761.0,68760.0,1.00361236]
[1722218491053,0.00184,68761.0,68760.0,1.00361236]
[1722218492324,0.06722017,68761.0,68760.0,1.00361236]
[1722218492591,0.06722017,68761.0,68760.0,1.00261236]
[1722218493368,0.00284,68761.0,68760.0,1.00561236]
[1722218495292,0.04640328,68761.0,68760.0,1.00561236]
[1722218495466,0.00284,68761.0,68760.0,0.92915512]
[1722218495668,0.00284,68761.0,68760.0,0.69646212]
[1722218496285,0.04639876,68761.0,68760.0,0.69646212]
[1722218496887,0.0464029,68761.0,68760.0,0.92915512]
[1722218498442,0.00284,68761.0,68760.0,0.93717243]
[1722218498599,0.00284,68761.0,68760.0,1.01362967]
[1722218499272,0.00284,68761.0,68760.0,0.93717243]
[1722218499597,0.00284,68761.0,68760.0,1.24632267]
[1722218499847,0.04638309,68761.0,68760.0,1.24632267]
[1722218500002,0.00284,68761.0,68760.0,1.24632267]
[1722218500610,0.00284,68761.0,68760.0,1.39972267]
[1722218500843,0.00284,68761.0,68760.0,1.42272267]
[1722218502749,0.025677,68761.0,68760.0,1.42272267]
[1722218506738,0.025677,68761.0,68760.0,1.34626543]
[1722218506937,0.025677,68761.0,68760.0,1.42272267]
[1722218507881,0.04349621,68770.0,68769.0,0.12645724]
[1722218508042,0.00084,68771.0,68770.0,0.61634524]
[1722218508213,0.00084,68771.0,68770.0,0.84900424]
[1722218508411,0.00084,68771.0,68770.0,0.86159815]
[1722218508606,0.00084,68771.0,68770.0,0.95446705]
[1722218508848,0.00084,68771.0,68770.0,0.64535081]
[1722218509267,0.00084,68771.0,68770.0,0.53055081]
[1722218509820,0.00084,68771.0,68770.0,0.57955081]
[1722218510023,0.00084,68771.0,68770.0,0.52955081]
[1722218510231,0.00084,68771.0,68770.0,0.57955081]
[1722218510474,0.00184,68771.0,68770.0,0.58255081]
[1722218510670,0.00184,68771.0,68770.0,0.53255081]
[1722218510831,0.00184,68771.0,68770.0,0.58255081]
[1722218511029,0.02538276,68771.0,68770.0,0.18456281]
[1722218511228,0.02538276,68771.0,68770.0,0.01559391]
[1722218511229,0.19003782,68771.0,68770.0,0.01559391]
[1722218511444,0.46616631,68771.0,68770.0,0.01559391]
[1722218511637,0.42269382,68771.0,68770.0,0.01559391]
[1722218511842,0.42269382,68771.0,68770.0,0.003]
[1722218512368,0.40868191,68771.0,68770.0,0.003]
[1722218512569,0.40868191,68771.0,68770.0,0.01558643]
[1722218513098,0.40849088,68771.0,68770.0,0.01558643]
[1722218513440,0.41149088,68771.0,68770.0,0.01958643]
[1722218513881,0.40949088,68771.0,68770.0,0.01958643]
[1722218514057,0.3982209,68771.0,68770.0,0.04230507]
[1722218514260,0.40949088,68771.0,68770.0,0.04230507]
[1722218514495,0.64214688,68771.0,68770.0,0.04230507]
[1722218515377,0.64414688,68771.0,68770.0,0.01958643]
[1722218515574,0.64414688,68771.0,68770.0,0.007]
[1722218516157,0.64423241,68771.0,68770.0,0.007]
[1722218516559,0.64423241,68771.0,68770.0,0.01509505]
[1722218516772,0.64423241,68771.0,68770.0,0.007]
[1722218517378,0.64223241,68771.0,68770.0,0.007]
[1722218517575,0.66506839,68771.0,68770.0,0.007]
[1722218517964,0.70744391,68771.0,68770.0,0.02926522]
[1722218519085,0.70944391,68771.0,68770.0,0.02926522]
[1722218519296,0.64429724,68771.0,68770.0,0.02926522]
[1722218519502,0.64429724,68771.0,68770.0,0.007]
[1722218519710,0.87695324,68771.0,68770.0,0.007]
[1722218519915,1.20881978,68771.0,68770.0,0.007]
[1722218520116,1.1000986,68771.0,68770.0,0.007]
[1722218520356,1.23056402,68771.0,68770.0,0.007]
[1722218520595,1.1000986,68771.0,68770.0,0.007]
[1722218520801,1.1000986,68771.0,68770.0,0.003]
[1722218520802,1.0990986,68771.0,68770.0,0.003]
[1722218521201,1.22959231,68771.0,68770.0,0.004]
[1722218521338,0.36029398,68763.0,68762.0,0.00819864]
[1722218521539,0.12913429,68763.0,68762.0,0.49108261]
[1722218521740,0.12913429,68763.0,68762.0,1.35548361]
[1722218521741,0.04809782,68763.0,68762.0,1.35548361]
[1722218521986,0.04349876,68773.0,68772.0,0.77683]
[1722218522160,0.06524814,68775.0,68772.0,0.77683]
[1722218522161,0.09148451,68774.0,68772.0,0.09515341]
[1722218522361,0.09148451,68773.0,68772.0,0.09515341]
[1722218522562,0.09148451,68773.0,68772.0,0.13172875]
[1722218522563,0.16431687,68773.0,68772.0,0.13172875]
[1722218522827,0.04799287,68773.0,68772.0,0.13172875]
[1722218522940,0.04799287,68773.0,68772.0,0.24805475]
[1722218523146,0.04799287,68773.0,68772.0,0.48070675]
[1722218524292,0.11324101,68773.0,68772.0,0.48070675]
[1722218524496,0.01521081,68776.0,68775.0,0.116321]
[1722218524723,0.06332197,68776.0,68775.0,0.17460936]
[1722218525043,0.08615594,68776.0,68775.0,0.18754865]
[1722218525240,0.1949216,68776.0,68775.0,0.18754865]
[1722218525444,0.08615594,68776.0,68775.0,0.18754865]
[1722218525668,0.08615594,68776.0,68775.0,0.42019065]
[1722218526477,0.1949216,68776.0,68775.0,0.42019065]
[1722218527573,0.08615594,68776.0,68775.0,0.42019065]
[1722218528056,0.08615594,68776.0,68775.0,0.41919065]
[1722218528280,0.19497506,68776.0,68775.0,0.65183265]
[1722218528500,0.06332197,68776.0,68775.0,0.65183265]
[1722218528721,0.06532197,68776.0,68775.0,0.66083265]
[1722218531061,0.08812109,68776.0,68775.0,0.69956267]
[1722218531447,0.04004478,68776.0,68775.0,0.69956267]
[1722218531654,0.08812109,68776.0,68775.0,0.69956267]
[1722218532552,0.08812109,68776.0,68775.0,0.81106267]
[1722218532761,0.18188643,68776.0,68775.0,1.17470467]
[1722218532973,0.05007631,68776.0,68775.0,1.08597465]
[1722218533283,0.15905246,68776.0,68775.0,1.08597465]
[1722218533695,0.15905246,68776.0,68775.0,1.17470467]
[1722218533895,0.15805246,68776.0,68775.0,1.17070467]
[1722218534347,0.05033261,68776.0,68775.0,1.17670467]
[1722218534520,0.04933261,68776.0,68775.0,1.17170467]
[1722218534722,0.05033261,68776.0,68775.0,1.14597465]
[1722218535072,0.05033261,68776.0,68775.0,1.18470467]
[1722218535276,0.04933261,68776.0,68775.0,1.17170467]
[1722218535642,0.05033261,68776.0,68775.0,1.18470467]
[1722218536085,0.04457517,68780.0,68779.0,0.37023002]
[1722218536290,0.04457517,68782.0,68781.0,0.25504102]
[1722218536494,0.0634,68793.0,68792.0,0.116292]
[1722218537035,0.0634,68793.0,68792.0,0.12907882]
[1722218537364,0.0634,68793.0,68792.0,0.12807882]
[1722218537721,0.0634,68793.0,68792.0,0.59324882]
[1722218537955,0.0634,68793.0,68792.0,0.59624882]
[1722218538171,0.0634,68793.0,68792.0,0.37992054]
[1722218538891,0.07466998,68793.0,68792.0,0.03204354]
[1722218539089,0.07466998,68793.0,68792.0,0.01578682]
[1722218539312,0.0634,68793.0,68792.0,0.01578682]
[1722218539522,0.08622899,68793.0,68792.0,0.01578682]
[1722218539880,0.0634,68793.0,68792.0,0.13207882]
[1722218540062,0.0634,68793.0,68792.0,0.1893064]
[1722218540206,0.26855998,68793.0,68792.0,0.0730144]
[1722218540406,0.26855998,68793.0,68792.0,0.003]
[1722218540999,0.50114098,68793.0,68792.0,0.003]
[1722218541400,0.73372198,68793.0,68792.0,0.002]
[1722218541653,0.73572198,68793.0,68792.0,0.002]
[1722218542385,0.73572198,68793.0,68792.0,0.007]
[1722218542560,0.96830298,68793.0,68792.0,0.007]
[1722218542761,0.99113304,68793.0,68792.0,0.007]
[1722218542963,0.75855204,68793.0,68792.0,0.007]
[1722218544058,0.80301681,68793.0,68792.0,0.005]
[1722218544276,0.01126998,68788.0,68785.0,0.116304]
[1722218544474,0.04446477,68787.0,68786.0,0.07354825]
[1722218544683,0.04446477,68787.0,68786.0,0.08637513]
[1722218544879,0.05573475,68788.0,68786.0,0.08637513]
[1722218545080,0.05573475,68787.0,68786.0,0.08637513]
[1722218545282,0.05573475,68787.0,68786.0,0.20267713]
[1722218545577,0.05573475,68787.0,68786.0,0.08637513]
[1722218545578,0.04446477,68787.0,68786.0,0.08637513]
[1722218545775,0.04446477,68787.0,68786.0,0.43528213]
[1722218546406,0.13074959,68792.0,68789.0,0.116297]
[1722218546649,0.17547507,68791.0,68790.0,0.04058612]
[1722218546835,0.04472469,68791.0,68790.0,0.04058612]
[1722218547070,0.17546028,68791.0,68790.0,0.04058612]
[1722218547285,0.04472469,68791.0,68790.0,0.04058612]
[1722218547450,0.04472469,68791.0,68790.0,0.15688112]
[1722218547900,0.06755451,68791.0,68790.0,0.38947212]
[1722218548114,0.04472469,68791.0,68790.0,0.38947212]
[1722218548326,0.04472469,68791.0,68790.0,0.15688112]
[1722218548529,0.04472469,68791.0,68790.0,0.15588112]
[1722218549144,0.04572469,68791.0,68790.0,0.16388112]
[1722218549377,0.04572469,68791.0,68790.0,0.13708706]
[1722218549534,0.23548867,68791.0,68790.0,0.02079206]
[1722218549936,0.412082,68791.0,68790.0,0.02079206]
[1722218550138,0.46798623,68791.0,68790.0,0.02079206]
[1722218550359,0.42335198,68791.0,68790.0,0.02079206]
[1722218550570,0.19483186,68791.0,68790.0,0.02079206]
[1722218550789,0.12336188,68791.0,68790.0,0.06511659]
[1722218550995,0.11098835,68791.0,68790.0,1.23367846]
[1722218551191,0.04456693,68791.0,68790.0,1.32240848]
[1722218551395,0.001,68791.0,68790.0,1.32240848]
[1722218552003,0.001,68791.0,68790.0,1.32340848]
[1722218552211,0.04356693,68793.0,68792.0,1.03487702]
[1722218552538,0.04356693,68795.0,68794.0,0.248389]
[1722218552740,0.08713711,68799.0,68798.0,0.166282]
[1722218552909,0.13105368,68799.0,68798.0,0.67573453]
[1722218553244,0.13100772,68799.0,68798.0,0.92003258]
[1722218553415,0.10917336,68799.0,68798.0,0.92003258]
[1722218553616,0.04387061,68799.0,68798.0,0.92003258]
[1722218554112,0.10917336,68799.0,68798.0,0.92003258]
[1722218554336,0.08739489,68799.0,68798.0,0.92003258]
[1722218554560,0.08739334,68799.0,68798.0,0.92003258]
[1722218554753,0.04387061,68799.0,68798.0,0.92003258]
[1722218554955,0.10917336,68799.0,68798.0,0.92003258]
[1722218555159,0.04387061,68799.0,68798.0,0.92003258]
[1722218555303,0.08738394,68799.0,68798.0,0.92003258]
[1722218555499,0.08738394,68799.0,68798.0,0.93403258]
[1722218555706,0.08738394,68799.0,68798.0,1.01143258]
[1722218555904,0.08738394,68799.0,68798.0,1.02543258]
[1722218556110,0.08738394,68799.0,68798.0,1.3207626]
[1722218556307,1.00084,68802.0,68801.0,0.581385]
[1722218556532,1.06609615,68802.0,68801.0,0.7082366]
[1722218556764,1.1099675,68802.0,68801.0,0.72093434]
[1722218558240,1.04471135,68802.0,68801.0,0.73193434]
[1722218558441,1.1099675,68802.0,68801.0,0.73193434]
[1722218559275,1.04471135,68802.0,68801.0,0.73193434]
[1722218559487,1.04471135,68802.0,68801.0,1.09268834]
[1722218559716,1.00084,68802.0,68801.0,1.18041836]
[1722218560552,1.00084,68802.0,68801.0,1.24381836]
[1722218560879,1.02366283,68802.0,68801.0,1.25581836]
[1722218561461,1.02366283,68802.0,68801.0,1.40921836]
[1722218561667,1.02366283,68802.0,68801.0,1.43221836]
[1722218564646,1.02366283,68802.0,68801.0,1.66477236]
[1722218565195,1.00084,68802.0,68801.0,1.66477236]
[1722218565598,0.96777,68802.0,68801.0,1.66477236]
[1722218566142,0.96777,68802.0,68801.0,1.65277236]
[1722218566280,0.96777,68802.0,68801.0,1.66677236]
[1722218566697,0.96777,68802.0,68801.0,1.65577236]
[1722218566915,0.96777,68802.0,68801.0,1.64177236]
[1722218567379,0.96777,68802.0,68801.0,1.65577236]
[1722218567576,0.96777,68802.0,68801.0,1.75577236]
[1722218568516,0.93459,68802.0,68801.0,1.75577236]
[1722218568718,0.89259865,68802.0,68801.0,1.75577236]
[1722218568924,0.89259865,68802.0,68801.0,1.74177236]
[1722218569186,0.07489865,68802.0,68801.0,1.75577236]
[1722218569828,0.07489865,68802.0,68801.0,1.74177236]
[1722218570206,0.07489865,68802.0,68801.0,1.75577236]
[1722218571772,0.06032829,68802.0,68801.0,1.75577236]
[1722218572117,0.07269,68821.0,68820.0,0.630225]
[1722218572336,0.11626814,68821.0,68820.0,0.88214953]
[1722218572542,0.11626624,68821.0,68820.0,0.89466373]
[1722218572671,0.11626624,68821.0,68820.0,1.12715373]
[1722218572879,0.07269,68821.0,68820.0,1.12715373]
[1722218573625,0.07269,68821.0,68820.0,1.14315373]
[1722218573626,0.00819,68821.0,68820.0,1.14315373]
[1722218573897,0.00819,68821.0,68820.0,1.23088375]
[1722218574237,0.00819,68821.0,68820.0,1.53308375]
[1722218574441,0.00819,68821.0,68820.0,1.55608375]
[1722218575803,0.00819,68821.0,68820.0,1.54908375]
[1722218576610,0.00819,68821.0,68820.0,1.54008375]
[1722218576753,0.00819,68821.0,68820.0,1.54824103]
[1722218576955,0.00819,68821.0,68820.0,1.56224103]
[1722218577396,0.00819,68821.0,68820.0,1.54824103]
[1722218577748,0.00819,68821.0,68820.0,1.56224103]
[1722218577749,0.03100668,68821.0,68820.0,1.56224103]
[1722218578028,0.02461473,68821.0,68820.0,1.58713103]
[1722218578433,0.02461473,68821.0,68820.0,1.60113103]
[1722218578629,0.00179805,68821.0,68820.0,1.60113103]
[1722218578829,0.00179805,68821.0,68820.0,1.64500364]
[1722218579808,0.00179805,68821.0,68820.0,1.74500364]
[1722218579975,0.00179805,68821.0,68820.0,1.97749364]
[1722218580176,0.00819,68830.0,68829.0,1.24364002]
[1722218580384,0.00819,68830.0,68829.0,1.45124002]
[1722218580596,0.00819,68830.0,68829.0,1.47424002]
[1722218580758,0.00819,68830.0,68829.0,1.71911059]
[1722218580927,0.00819,68830.0,68829.0,1.48665059]
[1722218581162,0.0667,68839.0,68838.0,0.63877302]
[1722218581163,0.002,68839.0,68838.0,0.63877302]
[1722218581388,0.00819,68841.0,68840.0,0.87118702]
[1722218581593,0.00819,68841.0,68840.0,1.01575963]
[1722218581874,0.00819,68841.0,68840.0,1.49293722]
[1722218581875,0.03099859,68841.0,68840.0,1.49293722]
[1722218582074,0.03099859,68841.0,68840.0,1.66134044]
[1722218582470,0.01140062,68841.0,68840.0,1.66134044]
[1722218582721,0.00321063,68841.0,68840.0,1.76134044]
[1722218583035,1e-08,68842.0,68841.0,1.42299345]
[1722218583248,1e-08,68842.0,68841.0,1.58876378]
[1722218583440,1e-08,68842.0,68841.0,1.60107801]
[1722218584425,0.002,68849.0,68844.0,1.31116102]
[1722218584696,0.002,68849.0,68844.0,1.41958525]
[1722218584870,0.002,68849.0,68844.0,1.43187878]
[1722218585093,0.002,68849.0,68844.0,1.55873038]
[1722218585281,0.002,68849.0,68844.0,1.87373938]
[1722218586366,0.002,68849.0,68844.0,1.97373938]
[1722218587073,1e-08,68845.0,68844.0,1.97373938]
[1722218587200,0.002,68849.0,68848.0,0.48892802]
[1722218587428,0.002,68849.0,68848.0,0.88633871]
[1722218587710,0.002,68849.0,68848.0,1.58352671]
[1722218589161,0.002,68849.0,68848.0,1.59752671]
[1722218589771,0.002,68849.0,68848.0,1.76392671]
[1722218589971,0.002,68849.0,68848.0,1.77792671]
[1722218590816,0.002,68849.0,68848.0,1.76392671]
[1722218590995,0.00284,68849.0,68848.0,1.74992671]
[1722218591196,0.00284,68849.0,68848.0,1.76392671]
[1722218591197,0.00084,68849.0,68848.0,1.76392671]
[1722218591568,0.00084,68849.0,68848.0,1.73637509]
[1722218591763,0.00084,68858.0,68857.0,1.18220702]
[1722218592130,0.00084,68858.0,68857.0,1.55179975]
[1722218592912,0.02364386,68858.0,68857.0,1.55179975]
[1722218593332,0.02364386,68858.0,68857.0,1.46406973]
[1722218593534,0.02364386,68858.0,68857.0,1.55179975]
[1722218594535,0.02364386,68858.0,68857.0,1.47806973]
[1722218594740,0.02364386,68858.0,68857.0,1.56579975]
[1722218594946,0.02364386,68858.0,68857.0,1.55179975]
[1722218595158,0.02364386,68858.0,68857.0,1.56579975]
[1722218595943,0.02364386,68858.0,68857.0,1.86206475]
[1722218596152,0.02364386,68858.0,68857.0,1.97606475]
[1722218596357,0.02364386,68858.0,68857.0,2.02030806]
[1722218596563,0.02364386,68858.0,68857.0,2.00630806]
[1722218596957,0.02364386,68858.0,68857.0,2.02030806]
[1722218597163,0.02364386,68858.0,68857.0,1.98395968]
[1722218597368,0.08864386,68858.0,68857.0,1.65050578]
[1722218597566,0.08864386,68858.0,68857.0,1.60895416]
[1722218597951,0.16624386,68858.0,68857.0,0.15027754]
[1722218598128,0.16624386,68858.0,68857.0,0.39664254]
[1722218598339,0.16624386,68858.0,68857.0,0.38264254]
[1722218598534,0.16624386,68858.0,68857.0,0.61500754]
[1722218598733,0.08864386,68858.0,68857.0,0.7764185]
[1722218598937,0.02364386,68858.0,68857.0,0.9947835]
[1722218599090,0.02364386,68858.0,68857.0,1.0177835]
[1722218599529,0.02364386,68858.0,68857.0,1.0317835]
[1722218599965,0.02364386,68858.0,68857.0,0.7364185]
[1722218600162,0.02364386,68858.0,68857.0,0.1325065]
[1722218600163,0.16624386,68858.0,68857.0,0.1325065]
[1722218600502,0.16624386,68858.0,68857.0,0.21327754]
[1722218601030,0.16624386,68858.0,68857.0,0.19927754]
[1722218601434,0.16624386,68858.0,68857.0,0.15027754]
[1722218601850,0.16624386,68858.0,68857.0,0.02009554]
[1722218601851,0.29369484,68858.0,68857.0,0.02009554]
[1722218602084,0.16624386,68858.0,68857.0,0.02195441]
[1722218602285,0.16624386,68858.0,68857.0,0.18061639]
[1722218602286,0.14344,68858.0,68857.0,0.18061639]
[1722218602711,0.14344,68858.0,68857.0,0.41298139]
[1722218603213,0.06584,68858.0,68857.0,0.69434639]
[1722218603667,0.06584,68858.0,68857.0,0.92671139]
[1722218604269,0.00084,68858.0,68857.0,1.01444141]
[1722218605059,0.00084,68858.0,68857.0,1.02844141]
[1722218605261,0.00084,68858.0,68857.0,1.16784141]
[1722218605435,0.00084,68858.0,68857.0,1.19084141]
[1722218605635,0.00084,68858.0,68857.0,1.20484141]
[1722218606072,0.00084,68858.0,68857.0,1.19084141]
[1722218606274,0.00084,68858.0,68857.0,1.10311139]
[1722218606482,0.00084,68858.0,68857.0,1.11711139]
[1722218606848,0.00084,68858.0,68857.0,1.20484141]
[1722218607260,0.00084,68858.0,68857.0,1.11711139]
[1722218607461,0.00084,68858.0,68857.0,1.20484141]
[1722218608325,0.00084,68858.0,68857.0,1.19084141]
[1722218608519,0.00084,68858.0,68857.0,1.20484141]
[1722218609667,0.0236441,68858.0,68857.0,1.19084141]
[1722218610021,0.0236441,68858.0,68857.0,1.20484141]
[1722218610961,0.00084,68858.0,68857.0,1.20484141]
[1722218611167,0.00084,68858.0,68857.0,1.43720641]